bitfinex-derivatives/quotes_ETHF0:USTF0_20250329
["timestamp","ask_amount","ask_price","bid_price","bid_amount"]
[1743272296924,0.7447,1816.7,1816.2,9.6384]
[1743272297126,1.10138,1816.6,1816.4,3.2078]
[1743272297323,1.10143,1816.5,1816.4,3.2078]
[1743272301435,1.10161,1816.2,1816.1,3.2078]
[1743272302526,2.51961,1816.2,1816.1,3.2078]
[1743272302725,2.51961,1816.2,1815.9,5.42700652]
[1743272302726,1.10174,1816.0,1815.9,0.00824652]
[1743272302931,1.10174,1816.0,1815.6,3.2078]
[1743272302932,5.96223,1816.0,1815.4,4.5898]
[1743272303127,1.10195,1815.7,1815.6,3.2078]
[1743272303329,1.10195,1815.7,1815.5,1.10204]
[1743272303631,2.875,1815.9,1815.4,11.66102]
[1743272303834,4.316,1816.2,1815.8,3.2078]
[1743272304033,1.418,1816.1,1815.9,1.10176]
[1743272304342,0.00824652,1816.2,1816.0,3.2078]
[1743272304525,1.10175,1816.0,1815.8,5.04607652]
[1743272305735,1.418,1816.1,1815.8,3.94424652]
[1743272305938,1.1018,1815.9,1815.8,3.94424652]
[1743272306644,1.1018,1815.9,1815.8,5.04606652]
[1743272306840,2.1397,1816.1,1815.9,1.10177]
[1743272307040,1.1018,1815.9,1815.8,3.21604652]
[1743272309346,1.10177,1816.0,1815.8,4.31784652]
[1743272309537,1.1018,1815.9,1815.8,3.21604652]
[1743272310740,1.1018,1815.9,1815.8,0.00824652]
[1743272311147,3.317,1815.9,1815.8,0.00824652]
[1743272314451,3.21604652,1816.2,1815.8,3.21604652]
[1743272314649,3.21604652,1816.2,1816.1,1.10167]
[1743272314951,0.7366,1816.6,1816.1,5.7078]
[1743272315155,0.7366,1816.6,1816.2,5.7941]
[1743272315457,1.10153,1816.4,1816.2,5.7941]
[1743272315849,2.52558,1816.5,1816.2,6.8957]
[1743272316153,2.53382652,1816.5,1816.2,6.8957]
[1743272316753,1.10972652,1816.5,1816.3,3.2078]
[1743272316942,1.10972652,1816.5,1816.4,1.4801]
[1743272317141,0.00824652,1816.5,1816.4,1.4801]
[1743272317342,0.00824652,1816.5,1816.4,2.9209]
[1743272318154,3.2078,1817.2,1816.4,2.9209]
[1743272318352,76.22330855,1819.1,1816.4,2.9209]
[1743272318353,1.82827,1817.3,1817.0,1.10109]
[1743272318655,1.10097,1817.3,1817.1,1.3701]
[1743272318856,1.10101,1817.2,1817.1,1.3701]
[1743272319853,2.58411,1817.2,1817.1,1.3701]
[1743272320050,1.10101,1817.2,1817.1,1.3701]
[1743272320658,1.10107,1817.1,1817.0,0.00824652]
[1743272320847,2.48667,1817.1,1817.0,1.49954652]
[1743272321757,2.48667,1817.1,1817.0,0.00824652]
[1743272322156,1.10113,1817.0,1816.9,3.2078]
[1743272322461,1.10131,1816.7,1816.4,9.33399]
[1743272322647,1.10131,1816.7,1816.5,1.4913]
[1743272322953,7.34625,1817.0,1816.6,3.2078]
[1743272322954,1.3856,1817.0,1816.6,3.2078]
[1743272323154,1.10125,1816.8,1816.7,1.4913]
[1743272323961,1.10131,1816.7,1816.6,0.00824652]
[1743272324160,2.52461,1816.7,1816.6,0.00824652]
[1743272324556,1.10131,1816.7,1816.6,0.00824652]
[1743272325260,3.27231,1816.7,1816.6,0.00824652]
[1743272325758,2.171,1816.7,1816.4,3.2078]
[1743272326059,2.171,1816.7,1816.2,1.3638]
[1743272326060,1.10167,1816.1,1816.0,3.2078]
[1743272326957,1.10184,1815.9,1815.7,3.2078]
[1743272327160,1.10186,1815.8,1815.7,3.2078]
[1743272328359,1.10186,1815.8,1815.7,4.5974]
[1743272328558,1.10192,1815.7,1815.6,0.00824652]
[1743272328757,3.27582,1815.7,1815.6,0.00824652]
[1743272329160,6.46582,1815.7,1815.6,0.00824652]
[1743272329358,1.10225,1815.2,1815.0,2.0713]
[1743272329666,3.2078,1815.5,1815.0,2.0713]
[1743272329856,1.10226,1815.2,1815.0,2.0713]
[1743272330057,4.20851,1815.4,1814.9,3.2078]
[1743272330258,1.4532,1815.1,1814.8,1.4646]
[1743272330460,1.1024,1814.9,1814.8,1.4646]
[1743272330660,4.3102,1814.9,1814.8,0.00824652]
[1743272331867,3.2078,1814.9,1814.8,0.00824652]
[1743272332172,1.1024,1814.9,1814.8,0.00824652]
[1743272335569,1.10236,1815.0,1814.8,3.21604652]
[1743272335870,1.10236,1815.0,1814.9,1.4362]
[1743272339071,2.53046,1815.0,1814.9,1.4362]
[1743272339765,2.53046,1815.0,1814.8,0.00824652]
[1743272339766,1.1024,1814.9,1814.8,0.00824652]
[1743272339965,2.5305,1814.9,1814.8,0.00824652]
[1743272340158,1.4281,1814.9,1814.8,0.00824652]
[1743272340363,2.75558,1815.2,1814.8,0.00824652]
[1743272340573,1.1024,1814.9,1814.8,0.00824652]
[1743272341670,1.4281,1815.1,1814.8,0.00824652]
[1743272341866,0.00824652,1815.3,1815.2,1.10222]
[1743272342070,0.00824652,1815.3,1815.2,3.2078]
[1743272342371,1.4732,1815.9,1815.5,1.10201]
[1743272342567,4.6762,1816.0,1815.4,7.5158]
[1743272342873,1.10198,1815.6,1815.5,1.4983]
[1743272343166,1.1021,1815.4,1815.3,1.4983]
[1743272344564,1.10216,1815.3,1815.2,3.2078]
[1743272344761,1.10216,1815.3,1815.2,4.6178]
[1743272345568,1.10216,1815.3,1815.2,3.2078]
[1743272345974,2.58136,1815.3,1815.2,3.2078]
[1743272347075,3.21604652,1815.5,1815.2,3.2078]
[1743272347375,5.874,1816.2,1815.2,3.2078]
[1743272347376,2.75408,1816.2,1815.4,3.2078]
[1743272347572,7.44123,1816.1,1815.5,2.51198]
[1743272347778,1.10191,1815.8,1815.5,6.81898]
[1743272348471,2.75435,1816.0,1815.5,5.717]
[1743272348669,1.11013652,1815.8,1815.5,6.819]
[1743272348870,1.10194,1815.7,1815.5,6.819]
[1743272349169,1.11015652,1815.8,1815.5,6.819]
[1743272349374,0.00824652,1815.8,1815.5,5.717]
[1743272349679,0.00824652,1815.8,1815.7,1.10192]
[1743272349865,0.00824652,1815.8,1815.7,2.49082]
[1743272350065,1.4512,1816.4,1815.7,3.8889]
[1743272350263,1.1016,1816.3,1816.0,1.1017]
[1743272350476,2.9615,1816.4,1816.1,1.3889]
[1743272350477,1.10161,1816.2,1816.1,1.3889]
[1743272352679,2.52221,1816.2,1816.1,1.3889]
[1743272353672,0.00824652,1816.3,1816.1,2.49055]
[1743272353871,1.10161,1816.2,1816.1,1.3889]
[1743272354075,1.10161,1816.2,1816.0,4.31777652]
[1743272354269,1.10161,1816.2,1816.0,3.21604652]
[1743272354573,0.00824652,1816.3,1816.2,1.10161]
[1743272354771,0.00824652,1816.3,1816.2,3.2078]
[1743272354772,1.10979652,1816.3,1816.2,3.2078]
[1743272355475,0.00824652,1816.3,1816.0,0.00824652]
[1743272355668,1.4644,1816.2,1816.0,0.00824652]
[1743272355869,0.00824652,1816.3,1816.1,1.10167]
[1743272356175,0.00824652,1816.3,1816.0,4.31224652]
[1743272356370,1.10167,1816.1,1816.0,4.31224652]
[1743272356968,1.10167,1816.1,1816.0,0.00824652]
[1743272357680,2.47967,1816.1,1816.0,0.00824652]
[1743272358282,3.18747,1816.1,1816.0,0.00824652]
[1743272359385,3.2078,1816.2,1816.0,0.00824652]
[1743272359682,1.10167,1816.1,1816.0,0.00824652]
[1743272359887,2.47967,1816.1,1816.0,0.00824652]
[1743272360684,0.00824652,1816.3,1816.1,1.10164]
[1743272360882,0.00824652,1816.3,1816.2,4.30941]
[1743272361084,0.00824652,1816.3,1816.2,8.61141]
[1743272364282,0.00824652,1816.3,1816.2,10.11561]
[1743272364985,1.10137,1816.7,1816.5,1.10141]
[1743272365183,1.10137,1816.7,1816.6,1.5042]
[1743272367279,2.55797,1816.7,1816.6,1.5042]
[1743272367879,1.4566,1816.7,1816.6,1.5042]
[1743272368081,2.55791,1816.7,1816.6,1.5042]
[1743272368481,3.2078,1816.8,1816.6,1.5042]
[1743272368791,1.10131,1816.7,1816.6,1.5042]
[1743272369190,4.30909,1816.8,1816.6,2.60556]
[1743272369383,3.2078,1816.8,1816.7,1.10131]
[1743272369588,1.10116,1817.0,1816.8,1.10123]
[1743272369779,2.54528,1817.1,1816.9,2.48676]
[1743272369983,1.10113,1817.0,1816.9,1.3856]
[1743272371987,1.10125,1816.8,1816.7,0.7207]
[1743272372186,1.4137,1816.9,1816.7,0.7207]
[1743272372495,1.4137,1816.9,1816.7,1.82196]
[1743272372683,1.10125,1816.8,1816.7,0.7207]
[1743272372988,3.2078,1817.1,1816.7,0.7207]
[1743272373291,4.30891,1817.1,1816.7,0.7207]
[1743272373484,4.30891,1817.1,1816.8,2.5797]
[1743272373783,1.10113,1817.0,1816.9,4.298]
[1743272373989,1.10113,1817.0,1816.9,5.7765]
[1743272374488,2.58355,1817.2,1817.0,1.10113]
[1743272374687,2.58355,1817.2,1817.1,1.4785]
[1743272374688,1.10105,1817.2,1817.1,1.4785]
[1743272375084,1.4431,1817.6,1817.1,1.4785]
[1743272375287,1.4377,1817.6,1817.3,3.2078]
[1743272375484,1.10081,1817.6,1817.4,1.4173]
[1743272375991,1.4377,1817.9,1817.5,1.10083]
[1743272376290,2.53833,1817.9,1817.6,1.10074]
[1743272376593,3.2078,1818.2,1817.6,1.4173]
[1743272376794,1.10068,1817.8,1817.6,1.4173]
[1743272377184,1.10068,1817.8,1817.6,2.51806]
[1743272377385,1.10062,1817.9,1817.7,1.1007]
[1743272377586,1.10057,1818.0,1817.7,2.518]
[1743272377785,1.4377,1818.1,1817.7,5.72578]
[1743272378189,1.10059,1817.9,1817.7,5.72578]
[1743272378385,1.10059,1817.9,1817.7,4.6251]
[1743272378686,1.10057,1818.0,1817.8,4.295]
[1743272378889,1.10057,1818.0,1817.9,1.4005]
[1743272379493,2.53821,1818.1,1817.9,1.4005]
[1743272379695,1.10052,1818.0,1817.9,1.4005]
[1743272379995,2.53332,1818.0,1817.9,1.4005]
[1743272380788,2.53332,1818.0,1817.8,0.00824652]
[1743272380789,1.10058,1817.9,1817.8,0.00824652]
[1743272380990,2.53338,1817.9,1817.8,0.00824652]
[1743272385093,2.53338,1817.9,1817.8,1.47824652]
[1743272387698,2.53338,1817.9,1817.8,0.00824652]
[1743272388894,1.4328,1817.9,1817.8,1.10888652]
[1743272389096,2.53338,1817.9,1817.8,0.00824652]
[1743272389404,1.10056,1818.0,1817.8,6.81778652]
[1743272389597,1.10056,1818.0,1817.9,1.4189]
[1743272391600,1.10058,1817.9,1817.8,4.29824652]
[1743272391795,1.10058,1817.9,1817.8,0.00824652]
[1743272391796,3.18218,1817.9,1817.8,0.00824652]
[1743272394407,1.10058,1817.9,1817.8,0.00824652]
[1743272394706,1.3933,1818.0,1817.8,0.00824652]
[1743272394898,1.10048,1818.1,1817.9,1.10055]
[1743272395098,1.3933,1818.1,1817.8,0.73934652]
[1743272395301,2.49381,1818.1,1817.9,2.59987]
[1743272395505,1.10052,1818.0,1817.9,1.4993]
[1743272396207,1.3933,1818.1,1817.9,1.4993]
[1743272396506,1.10052,1818.0,1817.9,1.4993]
[1743272397101,1.10058,1817.9,1817.8,0.00824652]
[1743272398102,4.6011,1818.1,1817.8,0.00824652]
[1743272398315,1.10058,1817.9,1817.8,0.00824652]
[1743272403011,3.2078,1817.9,1817.4,1.4179]
[1743272403312,1.10114,1817.0,1816.8,60.27934885]
[1743272403512,1.10114,1817.0,1816.9,1.364]
[1743272403714,1.10113,1817.0,1816.9,1.364]
[1743272404411,1.10119,1816.9,1816.8,3.21604652]
[1743272404612,2.55709,1816.9,1816.8,3.21604652]
[1743272404807,3.21604652,1817.1,1816.8,7.50104652]
[1743272404808,0.00824652,1817.1,1816.8,7.50104652]
[1743272405016,3.2078,1817.5,1817.4,1.10085]
[1743272405222,4.30863,1817.5,1817.3,1.10093]
[1743272405415,4.30863,1817.5,1817.4,1.364]
[1743272405821,1.4559,1817.6,1817.4,1.364]
[1743272406011,1.10083,1817.5,1817.4,1.364]
[1743272410529,1.10083,1817.5,1817.1,3.2078]
[1743272410530,1.10101,1817.2,1817.1,3.2078]
[1743272410824,1.10113,1817.0,1816.9,4.6503]
[1743272411026,1.10111,1817.1,1816.9,4.6503]
[1743272411227,1.10113,1817.0,1816.9,4.6503]
[1743272411425,1.10113,1817.0,1816.9,1.4425]
[1743272411823,1.10113,1817.0,1816.9,2.8691]
[1743272412323,1.3827,1817.2,1816.9,2.8691]
[1743272412831,3.9545,1817.3,1816.8,0.00824652]
[1743272413128,1.10119,1816.9,1816.8,1.47184652]
[1743272413630,1.10119,1816.9,1816.7,3.2078]
[1743272413631,1.10143,1816.5,1816.4,1.4493]
[1743272413823,2.75319,1816.8,1816.3,3.2078]
[1743272413824,1.10149,1816.4,1816.3,3.2078]
[1743272414024,1.10155,1816.3,1816.2,55.125]
[1743272414225,1.10161,1816.2,1816.1,0.7553]
[1743272414530,1.10167,1816.1,1816.0,3.2078]
[1743272414924,1.45604652,1816.2,1816.0,3.2078]
[1743272415126,1.10167,1816.1,1816.0,3.2078]
[1743272415535,1.10174,1816.0,1815.9,0.00824652]
[1743272415831,2.55504,1816.0,1815.9,0.00824652]
[1743272417417,4.20766,1816.0,1815.4,7.4908]
[1743272417623,2.55506,1816.0,1815.6,3.2078]
[1743272417831,3.2078,1816.1,1815.9,1.10178]
[1743272418030,4.30947,1816.1,1816.0,1.463]
[1743272418532,3.2078,1816.1,1815.9,0.00824652]
[1743272418728,2.54774,1816.0,1815.9,0.00824652]
[1743272421730,0.00824652,1816.2,1815.9,3.21604652]
[1743272421925,3.2078,1816.8,1816.4,1.10146]
[1743272422134,1.10137,1816.6,1816.5,1.3626]
[1743272424426,2.48777,1816.6,1816.5,1.3626]
[1743272424626,1.10155,1816.3,1816.2,3.2078]
[1743272425124,1.10155,1816.3,1816.2,4.6525]
[1743272425323,1.10174,1816.0,1815.9,0.00824652]
[1743272425535,1.3864,1816.2,1815.9,0.00824652]
[1743272425828,1.10174,1816.0,1815.9,1.45294652]
[1743272427139,2.48814,1816.0,1815.9,1.45294652]
[1743272428824,10.24455,1816.4,1815.9,1.45294652]
[1743272429027,1.10172,1816.1,1815.9,4.66074652]
[1743272429437,1.10172,1816.1,1815.9,8.94274652]
[1743272429736,1.10171,1816.1,1815.9,8.94274652]
[1743272429933,1.4326,1816.3,1815.9,8.94274652]
[1743272430328,1.10173,1816.1,1815.9,8.94274652]
[1743272431234,1.4322,1816.6,1815.9,11.44274652]
[1743272431432,4.18685652,1816.7,1816.3,3.2078]
[1743272431746,1.10143,1816.5,1816.4,1.4904]
[1743272432440,1.43354652,1816.7,1816.4,1.4904]
[1743272432739,1.10143,1816.5,1816.4,1.4904]
[1743272434840,1.10149,1816.4,1816.3,3.2078]
[1743272435028,2.48509,1816.4,1816.3,3.2078]
[1743272435539,1.10167,1816.1,1816.0,1.406]
[1743272435743,1.10174,1816.0,1815.9,0.00824652]
[1743272435939,3.95764,1816.0,1815.9,0.00824652]
[1743272437338,1.10186,1815.8,1815.7,1.406]
[1743272441739,1.10192,1815.7,1815.6,0.00824652]
[1743272441941,2.57192,1815.7,1815.6,0.00824652]
[1743272443045,3.48487,1816.0,1815.6,0.00824652]
[1743272443245,1.10192,1815.7,1815.6,0.00824652]
[1743272444648,4.30972,1815.7,1815.6,0.00824652]
[1743272444848,5.79522,1815.7,1815.6,0.00824652]
[1743272445345,1.10234,1815.0,1814.9,0.7549]
[1743272445541,2.75527,1815.4,1814.9,5.06506]
[1743272445740,3.2078,1815.5,1815.0,1.10232]
[1743272445940,1.1023,1815.1,1814.9,5.0651]
[1743272446446,1.10234,1815.0,1814.9,3.9627]
[1743272447548,1.10234,1815.0,1814.9,5.0651]
[1743272447846,1.11050652,1815.2,1815.0,1.10232]
[1743272448046,1.11050652,1815.2,1815.1,1.3784]
[1743272448539,0.00824652,1815.2,1815.1,5.68848]
[1743272448743,3.9618,1816.0,1815.3,2.75541]
[1743272448947,1.10192,1815.7,1815.5,4.30979]
[1743272449143,1.10192,1815.7,1815.6,1.3794]
[1743272451753,1.42274652,1815.8,1815.7,1.10192]
[1743272451754,0.00824652,1815.8,1815.7,1.10192]
[1743272451953,0.00824652,1815.8,1815.7,8.58672]
[1743272452155,1.10173,1816.1,1815.9,1.10179]
[1743272452449,2.75381,1816.4,1816.0,1.43]
[1743272452751,1.10166,1816.2,1816.0,2.53174]
[1743272453147,1.10159,1816.3,1816.0,5.707]
[1743272453349,1.10162,1816.2,1816.0,7.49689]
[1743272453543,1.10167,1816.1,1816.0,6.3952]
[1743272453759,1.10166,1816.2,1816.0,7.49693]
[1743272454452,1.10166,1816.2,1816.0,6.3952]
[1743272454653,1.10167,1816.1,1816.0,6.3952]
[1743272454956,1.10167,1816.2,1816.0,7.49691]
[1743272455346,2.51580652,1816.3,1816.1,1.10164]
[1743272455655,0.00824652,1816.3,1816.2,1.3661]
[1743272455851,1.10979652,1816.3,1816.2,1.3661]
[1743272456152,1.10979652,1816.3,1816.2,2.46771]
[1743272456153,0.00824652,1816.3,1816.2,2.46771]
[1743272456352,0.00824652,1816.3,1816.2,3.18731]
[1743272456949,1.10979652,1816.3,1816.2,2.0857]
[1743272457155,2.48759652,1816.3,1816.2,1.3661]
[1743272461446,0.00824652,1816.3,1816.2,2.46771]
[1743272461654,0.00824652,1816.3,1816.2,6.74171]
[1743272462862,0.7386,1816.8,1816.3,2.75385]
[1743272463164,5.3455,1817.2,1816.7,3.2078]
[1743272463358,1.10115,1817.0,1816.8,2.54221]
[1743272463556,1.10115,1817.0,1816.9,1.441]
[1743272464161,1.10119,1816.9,1816.8,0.00824652]
[1743272464664,4.30899,1816.9,1816.8,0.00824652]
[1743272465456,5.05329,1816.9,1816.8,0.00824652]
[1743272467462,6.41819,1816.9,1816.8,0.00824652]
[1743272467965,12.088,1816.9,1816.1,3.2078]
[1743272468260,1.1018,1815.9,1815.8,8.8921]
[1743272468464,1.10186,1815.8,1815.7,1.4991]
[1743272468662,1.10195,1815.7,1815.4,5.37305]
[1743272468867,2.4668,1815.8,1815.5,2.60114]
[1743272469166,2.75435,1816.0,1815.5,4.7069]
[1743272469464,1.11015652,1815.8,1815.5,5.80892]
[1743272470156,0.00824652,1815.8,1815.7,4.30972]
[1743272470361,0.00824652,1815.8,1815.7,8.58072]
[1743272470558,0.00824652,1815.8,1815.7,9.98222]
[1743272471660,1.11010652,1815.8,1815.7,5.6725]
[1743272471965,2.58570652,1815.8,1815.7,5.6725]
[1743272472862,2.58570652,1815.8,1815.7,1.4015]
[1743272473062,1.10204,1815.5,1815.4,0.00824652]
[1743272473269,1.10204,1815.5,1815.4,1.39234652]
[1743272473565,3.2078,1815.7,1815.4,1.39234652]
[1743272473760,1.102,1815.6,1815.4,1.39234652]
[1743272473966,1.10203,1815.6,1815.5,3.2078]
[1743272474265,1.10203,1815.6,1815.4,2.49442652]
[1743272474469,1.4587,1815.7,1815.4,1.39234652]
[1743272474861,2.56065,1815.7,1815.4,2.49441652]
[1743272475265,4.6665,1815.7,1815.4,1.39234652]
[1743272475465,1.10204,1815.6,1815.4,1.39234652]
[1743272475768,2.5607,1815.6,1815.4,1.39234652]
[1743272476566,0.00824652,1815.8,1815.5,3.2078]
[1743272476769,0.00824652,1815.8,1815.7,4.30972]
[1743272477067,5.9613,1816.6,1816.1,1.10166]
[1743272477369,1.10162,1816.2,1816.0,8.57851]
[1743272477567,1.10161,1816.2,1816.1,1.4678]
[1743272477756,2.53819,1816.3,1816.1,1.4678]
[1743272477964,2.53819,1816.3,1816.1,2.56945]
[1743272478167,1.10161,1816.2,1816.1,1.4678]
[1743272478364,1.10167,1816.1,1816.0,4.269]
[1743272478563,1.10167,1816.1,1815.8,6.06853]
[1743272478766,1.10167,1816.1,1815.9,3.2078]
[1743272478967,2.167,1816.3,1815.9,3.2078]
[1743272479174,1.10167,1816.2,1815.9,4.30958]
[1743272479477,1.10168,1816.1,1815.9,4.30957]
[1743272480568,1.10174,1816.0,1815.9,3.2078]
[1743272480757,2.49504,1816.0,1815.9,3.2078]
[1743272482865,3.9406,1816.4,1816.1,1.10165]
[1743272482866,0.7328,1816.4,1816.1,1.10165]
[1743272483071,0.7328,1816.4,1816.1,4.30945]
[1743272483272,1.10158,1816.3,1816.1,4.30945]
[1743272483576,1.422,1816.3,1816.1,4.30945]
[1743272483787,2.52357,1816.3,1816.1,4.30945]
[1743272484074,2.52357,1816.3,1816.1,3.2078]
[1743272484261,1.422,1816.3,1816.1,4.30946]
[1743272484465,0.7328,1816.4,1816.1,4.30945]
[1743272484668,1.10159,1816.3,1816.1,4.30945]
[1743272484970,1.422,1816.5,1816.1,3.2078]
[1743272485169,0.7343,1816.7,1816.3,3.2078]
[1743272485170,1.10149,1816.4,1816.3,3.2078]
[1743272485676,1.10155,1816.3,1816.2,0.00824652]
[1743272485976,2.49955,1816.3,1816.2,0.00824652]
[1743272489178,2.75426,1816.1,1815.6,4.266]
[1743272489374,1.10182,1815.9,1815.7,4.30969]
[1743272489575,1.3971,1816.0,1815.8,1.10181]
[1743272489878,1.10184,1815.9,1815.7,4.30971]
[1743272490080,2.49885,1816.0,1815.8,1.10182]
[1743272490274,0.00824652,1816.0,1815.7,3.2078]
[1743272490574,1.10184,1815.9,1815.7,4.3097]
[1743272491180,1.10186,1815.8,1815.7,4.30971]
[1743272491381,0.00824652,1816.0,1815.7,3.2078]
[1743272491579,1.10185,1815.9,1815.7,4.3097]
[1743272491782,1.10186,1815.8,1815.7,3.2078]
[1743272492574,1.10192,1815.7,1815.6,5.37619652]
[1743272492773,1.10189,1815.8,1815.7,1.10191]
[1743272493069,0.00824652,1816.0,1815.7,3.2078]
[1743272493376,0.00824652,1816.0,1815.9,4.3096]
[1743272493575,1.10998652,1816.0,1815.9,8.5746]
[1743272493776,0.00824652,1816.0,1815.9,8.5746]
[1743272493975,0.7153,1816.6,1815.9,9.9728]
[1743272494177,3.2078,1817.0,1816.8,1.10125]
[1743272494384,3.2078,1817.0,1816.0,1.9824]
[1743272494385,2.2222,1817.2,1816.6,8.904]
[1743272494586,0.7153,1817.5,1816.9,3.2078]
[1743272494877,1.10107,1817.1,1817.0,5.6342]
[1743272495179,1.10107,1817.1,1817.0,5.64244652]
[1743272495481,1.10105,1817.2,1817.0,5.64244652]
[1743272495875,1.4941,1817.4,1817.0,5.64244652]
[1743272495876,1.10099,1817.3,1817.0,6.74354652]
[1743272496075,0.7281,1817.6,1817.1,3.2078]
[1743272496280,0.7281,1817.6,1817.2,2.47121]
[1743272496482,1.10095,1817.3,1817.2,1.3702]
[1743272496672,1.10095,1817.3,1817.2,2.0487788]
[1743272497076,1.10094,1817.4,1817.2,2.0487788]
[1743272497278,1.4941,1817.5,1817.2,2.0487788]
[1743272497486,3.9518,1817.9,1817.3,9.2502788]
[1743272497784,1.4906,1817.8,1817.4,2.0470788]
[1743272497980,1.10078,1817.6,1817.5,0.6785788]
[1743272498883,2.59138,1817.6,1817.5,0.6785788]
[1743272499484,3.9518,1817.9,1817.5,0.6785788]
[1743272499684,1.1007,1817.7,1817.6,1.3685]
[1743272500687,1.10077,1817.6,1817.5,0.67558662]
[1743272500985,1.4693,1817.6,1817.4,2.12798662]
[1743272501984,1.10083,1817.5,1817.4,2.12798662]
[1743272502184,4.30863,1817.5,1817.4,0.67558662]
[1743272502376,4.99663,1817.5,1817.4,0.67558662]
[1743272502579,3.8958,1817.5,1817.2,1.4524]
[1743272503088,1.10095,1817.3,1817.2,2.12798662]
[1743272503581,1.10095,1817.3,1817.2,1.4524]
[1743272503787,1.10095,1817.3,1817.2,2.12798662]
[1743272504387,1.10101,1817.2,1817.1,0.67558662]
[1743272504698,1.10107,1817.1,1817.0,0.00824652]
[1743272504873,1.10158,1816.3,1816.2,3.2078]
[1743272505077,1.10158,1816.3,1816.2,4.26]
[1743272505382,3.2078,1816.7,1816.2,1.10159]
[1743272505581,3.2078,1816.7,1816.3,3.2078]
[1743272505876,1.10137,1816.6,1816.3,8.56833]
[1743272506082,1.10137,1816.6,1816.3,8.57657652]
[1743272506383,1.10143,1816.5,1816.4,1.4374]
[1743272512578,2.59641,1816.6,1816.4,1.4374]
[1743272512790,0.00824652,1816.7,1816.5,3.2078]
[1743272512987,0.00824652,1816.7,1816.6,1.4286]
[1743272513186,1.10955652,1816.7,1816.6,1.4286]
[1743272513990,0.00824652,1816.7,1816.6,2.52997]
[1743272514692,0.00824652,1816.7,1816.6,6.78697]
[1743272515488,1.10955652,1816.7,1816.6,6.78697]
[1743272516188,1.10955652,1816.7,1816.6,5.6856]
[1743272516890,1.10955652,1816.7,1816.6,6.35725227]
[1743272517595,1.10955652,1816.7,1816.6,7.45862227]
[1743272518496,1.10955652,1816.7,1816.6,6.35725227]
[1743272518891,1.10955652,1816.7,1816.6,2.10025227]
[1743272519088,4.31735652,1816.7,1816.6,2.27e-06]
[1743272519796,1.10143,1816.5,1816.4,1.4687]
[1743272520385,0.00824652,1816.7,1816.6,1.10137]
[1743272520589,1.10137,1816.6,1816.5,3.2078]
[1743272520886,1.10137,1816.6,1816.5,5.77793]
[1743272521094,0.00824652,1816.7,1816.6,1.10137]
[1743272521301,4.6588,1817.2,1816.7,2.75325]
[1743272521593,1.10086,1817.5,1817.3,1.10094]
[1743272521800,1.10086,1817.5,1817.4,1.3953]
[1743272524593,1.4665,1817.5,1817.4,1.10089]
[1743272524893,1.10083,1817.5,1817.4,1.5031]
[1743272526297,1.10079,1817.6,1817.4,1.5031]
[1743272526495,1.10079,1817.6,1817.4,2.60397]
[1743272526798,1.10081,1817.6,1817.4,1.5031]
[1743272526995,1.4665,1817.7,1817.4,1.5031]
[1743272527185,1.10077,1817.6,1817.4,2.60399]
[1743272527391,1.10077,1817.6,1817.4,2.60397]
[1743272527592,1.4665,1817.7,1817.5,4.253]
[1743272527900,1.1007,1817.7,1817.6,1.4311]
[1743272529194,1.10056,1818.0,1817.6,1.4311]
[1743272529395,1.10061,1817.9,1817.7,4.3085]
[1743272529595,1.4418,1818.0,1817.8,1.4311]
[1743272529801,2.54236,1818.0,1817.9,4.252]
[1743272530201,2.54236,1818.0,1817.9,5.6831]
[1743272532094,2.75158,1817.9,1817.4,7.4588]
[1743272532296,1.5049,1817.8,1817.6,1.10072]
[1743272532601,2.60554,1817.8,1817.7,1.4923]
[1743272534296,1.10083,1817.5,1817.4,7.4588]
[1743272534497,1.10083,1817.5,1817.4,3.2078]
[1743272534695,1.10089,1817.4,1817.3,0.00824652]
[1743272534896,3.32949,1817.4,1817.3,0.00824652]
[1743272537601,3.32949,1817.4,1817.3,0.00824652]
[1743272540008,4.06039,1817.4,1817.3,0.00824652]
[1743272540204,1.10113,1817.0,1816.9,1.3819]
[1743272540403,3.2078,1817.0,1816.5,3.9556]
[1743272540704,1.10137,1816.6,1816.5,3.2078]
[1743272541908,2.59977,1816.6,1816.5,3.2078]
[1743272542302,0.00824652,1816.7,1816.5,3.2078]
[1743272542499,0.00824652,1816.7,1816.6,1.493]
[1743272543004,1.10955652,1816.7,1816.6,1.493]
[1743272543202,0.00824652,1816.7,1816.6,2.59437]
[1743272543511,0.00824652,1816.7,1816.6,1.493]
[1743272543817,0.00824652,1816.7,1816.6,2.59437]
[1743272545510,1.10102,1817.2,1817.0,1.10109]
[1743272545707,5.95955,1817.8,1817.1,4.5815]
[1743272546005,1.4324,1817.9,1817.4,1.10086]
[1743272546208,1.1008,1817.6,1817.5,1.4727]
[1743272546611,1.10083,1817.5,1817.4,0.00824652]
[1743272546910,2.48813,1817.5,1817.4,1.48094652]
[1743272549110,1.4324,1817.9,1817.4,2.58181652]
[1743272549415,1.10083,1817.5,1817.4,1.48094652]
[1743272550709,4.6607,1817.8,1817.4,1.48094652]
[1743272550919,1.10083,1817.5,1817.4,1.48094652]
[1743272551814,4.6607,1817.8,1817.4,1.48094652]
[1743272552014,3.2078,1817.8,1817.4,1.48094652]
[1743272552208,3.2078,1817.8,1817.5,4.246]
[1743272552404,3.2078,1817.6,1816.7,3.2078]
[1743272552713,3.2078,1817.6,1816.8,2.59914]
[1743272552714,1.10108,1817.1,1816.8,2.59914]
[1743272552910,3.2078,1817.3,1816.7,3.2078]
[1743272552911,1.10113,1817.0,1816.9,1.4979]
[1743272553307,3.2078,1817.1,1816.7,3.2078]